fUSD/lending_fUSD_20240117
["ID","MTS","AMOUNT","RATE_DAILY","PERIOD"]
[311870817,1705481439200,-1000.0,0.00021916,2]
[311870819,1705481439211,-1000.0,0.00021916,2]
[311870822,1705481439222,-1000.0,0.00021916,2]
[311870823,1705481439231,-1000.0,0.00021916,2]
[311870826,1705481439242,-1000.0,0.00021916,2]
[311870827,1705481439252,-1000.0,0.00021916,2]
[311870829,1705481439263,-1000.0,0.00021916,2]
[311870832,1705481439273,-1000.0,0.00021916,2]
[311870834,1705481439291,-1000.0,0.00021916,2]
[311870836,1705481439302,-1000.0,0.00021916,2]
[311870837,1705481439312,-1000.0,0.00021916,2]
[311870840,1705481439322,-1000.0,0.00021916,2]
[311870842,1705481439333,-825.8404659,0.00021916,2]
[311870844,1705481439343,-447.35981768,0.00021917,2]
[311870846,1705481439355,-500.0,0.00021917,2]
[311870848,1705481439365,-500.0,0.00021917,2]
[311870850,1705481439376,-2000.0,0.00021917,2]
[311870851,1705481439388,-500.0,0.00021917,2]
[311870853,1705481439399,-592.16,0.00021917,2]
[311870855,1705481439417,-500.0,0.00021917,2]
[311870857,1705481439428,-500.0,0.00021917,2]
[311870860,1705481439439,-659.82,0.00021917,2]
[311870862,1705481439451,-500.0,0.00021917,2]
[311870864,1705481439463,-500.0,0.00021917,2]
[311870866,1705481439474,-500.0,0.00021917,2]
[311870868,1705481439486,-500.0,0.00021917,2]
[311870870,1705481439502,-500.0,0.00021917,2]
[311870872,1705481439514,-375.09400985,0.00021917,2]
[311870874,1705481439528,-500.0,0.00021917,2]
[311870876,1705481439539,-500.0,0.00021917,2]
[311870878,1705481439551,-888.95,0.00021917,2]
[311870880,1705481439565,-500.0,0.00021917,2]
[311870882,1705481439575,-500.0,0.00021917,2]
[311870884,1705481439586,-638.94,0.00021917,2]
[311870887,1705481439600,-500.0,0.00021917,2]
[311870889,1705481439611,-515.67275099,0.00021917,2]
[311870891,1705481439623,-500.0,0.00021917,2]
[311870893,1705481439634,-500.0,0.00021917,2]
[311870895,1705481439646,-500.0,0.00021917,2]
[311870897,1705481439657,-500.0,0.00021917,2]
[311870899,1705481439669,-500.0,0.00021917,2]
[311870901,1705481439680,-644.43,0.00021917,2]
[311870903,1705481439693,-500.0,0.00021917,2]
[311870905,1705481439707,-500.0,0.00021917,2]
[311870907,1705481439719,-500.0,0.00021917,2]
[311870909,1705481439732,-500.0,0.00021917,2]
[311870911,1705481439742,-500.0,0.00021917,2]
[311870913,1705481439754,-500.0,0.00021917,2]
[311870915,1705481439765,-538.68,0.00021917,2]
[311870918,1705481439777,-500.0,0.00021917,2]
[311870920,1705481439789,-544.96,0.00021917,2]
[311870922,1705481439799,-500.0,0.00021917,2]
[311870924,1705481439813,-653.6,0.00021917,2]
[311870926,1705481439824,-603.06059421,0.00021917,2]
[311870928,1705481439840,-500.0,0.00021917,2]
[311870930,1705481439851,-500.0,0.00021917,2]
[311870932,1705481439864,-727.36,0.00021917,2]
[311870934,1705481439877,-516.75,0.00021917,2]
[311870935,1705481439889,-773.67,0.00021917,2]
[311870936,1705481439900,-500.0,0.00021917,2]
[311870937,1705481439914,-490.80711158,0.00021917,2]
[311870938,1705481439928,-500.0,0.00021917,2]
[311870939,1705481439940,-549.64,0.00021917,2]
[311870940,1705481439952,-500.0,0.00021917,2]
[311870941,1705481439965,-890.34,0.00021917,2]
[311870943,1705481439976,-616.10325445,0.00021917,2]
[311870945,1705481439989,-500.0,0.00021917,2]
[311870947,1705481440000,-500.0,0.00021917,2]
[311870949,1705481440014,-535.49,0.00021917,2]
[311870951,1705481440030,-270.98350445,0.00021917,2]
[311870953,1705481440045,-500.0,0.00021917,2]
[311870955,1705481440058,-500.0,0.00021917,2]
[311870957,1705481440071,-500.0,0.00021917,2]
[311870959,1705481440083,-635.45,0.00021917,2]
[311870961,1705481440097,-500.0,0.00021917,2]
[311870963,1705481440111,-150.18853159,0.00021917,2]
[311870965,1705481440127,-500.0,0.00021917,2]
[311870967,1705481440142,-611.23,0.00021917,2]
[311870969,1705481440155,-500.0,0.00021917,2]
[311870971,1705481440167,-500.0,0.00021917,2]
[311870973,1705481440178,-500.0,0.00021917,2]
[311870976,1705481440192,-510.18,0.00021917,2]
[311870978,1705481440204,-235.71203045,0.00021917,2]
[311870980,1705481440218,-506.71585968,0.00021917,2]
[311870982,1705481440230,-500.0,0.00021917,2]
[311870984,1705481440242,-500.0,0.00021917,2]
[311870986,1705481440254,-500.0,0.00021917,2]
[311870988,1705481440265,-791.49,0.00021917,2]
[311870990,1705481440277,-500.0,0.00021917,2]
[311870992,1705481440290,-500.0,0.00021917,2]
[311870994,1705481440303,-519.36,0.00021917,2]
[311870996,1705481440315,-723.1,0.00021917,2]
[311870998,1705481440327,-647.99,0.00021917,2]
[311871000,1705481440339,-500.0,0.00021917,2]
[311871002,1705481440351,-500.0,0.00021917,2]
[311871004,1705481440363,-500.0,0.00021917,2]
[311871006,1705481440374,-507.12459092,0.00021917,2]
[311871008,1705481440386,-834.97,0.00021917,2]
[311871010,1705481440397,-500.0,0.00021917,2]
[311871012,1705481440409,-500.0,0.00021917,2]
[311871015,1705481440423,-500.0,0.00021917,2]
[311871017,1705481440435,-500.0,0.00021917,2]
[311871019,1705481440446,-500.0,0.00021917,2]
[311871021,1705481440457,-500.0,0.00021917,2]
[311871023,1705481440468,-500.0,0.00021917,2]
[311871025,1705481440479,-639.53,0.00021917,2]
[311871028,1705481440490,-500.0,0.00021917,2]
[311871031,1705481440501,-539.19,0.00021917,2]
[311871033,1705481440512,-500.0,0.00021917,2]
[311871035,1705481440526,-740.08,0.00021917,2]
[311871037,1705481440537,-500.0,0.00021917,2]
[311871039,1705481440547,-500.0,0.00021917,2]
[311871041,1705481440558,-500.0,0.00021917,2]
[311871043,1705481440569,-500.0,0.00021917,2]
[311871045,1705481440579,-507.09427729,0.00021917,2]
[311871047,1705481440590,-500.0,0.00021917,2]
[311871050,1705481440601,-500.0,0.00021917,2]
[311871051,1705481440611,-866.57,0.00021917,2]
[311871054,1705481440623,-500.0,0.00021917,2]
[311871056,1705481440634,-500.0,0.00021917,2]
[311871058,1705481440644,-500.0,0.00021917,2]
[311871060,1705481440655,-500.0,0.00021917,2]
[311871062,1705481440666,-500.0,0.00021917,2]
[311871064,1705481440676,-500.0,0.00021917,2]
[311871066,1705481440687,-806.27,0.00021917,2]
[311871068,1705481440698,-500.0,0.00021917,2]
[311871070,1705481440708,-847.5,0.00021917,2]
[311871072,1705481440718,-500.0,0.00021917,2]
[311871074,1705481440732,-525.36,0.00021917,2]
[311871076,1705481440743,-500.0,0.00021917,2]
[311871079,1705481440754,-500.0,0.00021917,2]
[311871080,1705481440764,-500.0,0.00021917,2]
[311871082,1705481440774,-500.0,0.00021917,2]
[311871085,1705481440786,-500.0,0.00021917,2]
[311871087,1705481440796,-500.0,0.00021917,2]
[311871089,1705481440805,-500.0,0.00021917,2]
[311871091,1705481440815,-500.0,0.00021917,2]
[311871093,1705481440826,-500.0,0.00021917,2]
[311871094,1705481440842,-865.56,0.00021917,2]
[311871095,1705481440853,-505.52412809,0.00021917,2]
[311871096,1705481440864,-799.31,0.00021917,2]
[311871097,1705481440874,-500.0,0.00021917,2]
[311871098,1705481440885,-500.0,0.00021917,2]
[311871099,1705481440896,-685.4,0.00021917,2]
[311871100,1705481440906,-500.0,0.00021917,2]
[311871101,1705481440917,-629.35,0.00021917,2]
[311871102,1705481440928,-500.0,0.00021917,2]
[311871103,1705481440941,-500.0,0.00021917,2]
[311871104,1705481440952,-500.0,0.00021917,2]
[311871105,1705481440962,-500.0,0.00021917,2]
[311871106,1705481440973,-236.59534097,0.00021917,2]
[311871107,1705481440984,-500.0,0.00021917,2]
[311871108,1705481440995,-500.0,0.00021917,2]
[311871109,1705481441006,-1007.99,0.00021917,2]
[311871110,1705481441017,-500.0,0.00021917,2]
[311871111,1705481441030,-500.0,0.00021917,2]
[311871112,1705481441044,-704.81,0.00021917,2]
[311871115,1705481441054,-500.0,0.00021917,2]
[311871117,1705481441065,-500.0,0.00021917,2]
[311871119,1705481441075,-500.0,0.00021917,2]
[311871121,1705481441084,-727.91,0.00021917,2]
[311871123,1705481441095,-500.0,0.00021917,2]
[311871125,1705481441105,-500.0,0.00021917,2]
[311871127,1705481441115,-500.0,0.00021917,2]
[311871129,1705481441124,-1273.62,0.00021917,2]
[311871131,1705481441133,-192.00455721,0.00021917,2]
[311871133,1705481441142,-500.0,0.00021917,2]
[311871135,1705481441152,-500.0,0.00021917,2]
[311871137,1705481441162,-1123.27,0.00021917,2]
[311871139,1705481441171,-505.69917228,0.00021917,2]
[311871141,1705481441181,-857.31,0.00021917,2]
[311871143,1705481441190,-500.0,0.00021917,2]
[311871145,1705481441200,-500.0,0.00021917,2]
[311871147,1705481441209,-500.0,0.00021917,2]
[311871149,1705481441221,-639.22,0.00021917,2]
[311871151,1705481441231,-604.0,0.00021917,2]
[311871153,1705481441242,-500.0,0.00021917,2]
[311871155,1705481441253,-520.35,0.00021917,2]
[311871157,1705481441264,-500.0,0.00021917,2]
[311871159,1705481441274,-599.42,0.00021917,2]
[311871161,1705481441286,-1300.84,0.00021917,2]
[311871163,1705481441296,-519.71909869,0.00021917,2]
[311871165,1705481441307,-500.0,0.00021917,2]
[311871168,1705481441318,-962.28,0.00021917,2]
[311871170,1705481441328,-500.0,0.00021917,2]
[311871172,1705481441339,-500.0,0.00021917,2]
[311871174,1705481441350,-500.0,0.00021917,2]
[311871176,1705481441362,-500.0,0.00021917,2]
[311871178,1705481441372,-1693.37,0.00021917,2]
[311871180,1705481441382,-959.01,0.00021917,2]
[311871182,1705481441392,-500.0,0.00021917,2]
[311871184,1705481441403,-805.51,0.00021917,2]
[311871186,1705481441413,-500.0,0.00021917,2]
[311871188,1705481441423,-500.0,0.00021917,2]
[311871190,1705481441433,-799.0,0.00021917,2]
[311871192,1705481441444,-500.0,0.00021917,2]
[311871194,1705481441458,-998.33,0.00021917,2]
[311871196,1705481441470,-500.0,0.00021917,2]
[311871198,1705481441481,-500.0,0.00021917,2]
[311871200,1705481441490,-670.89,0.00021917,2]
[311871202,1705481441500,-500.0,0.00021917,2]
[311871204,1705481441509,-1072.12,0.00021917,2]
[311871206,1705481441518,-802.47,0.00021917,2]
[311871209,1705481441528,-830.07,0.00021917,2]
[311871211,1705481441538,-808.66,0.00021917,2]
[311871213,1705481441549,-602.7,0.00021917,2]
[311871215,1705481441559,-518.92,0.00021917,2]
[311871217,1705481441569,-500.0,0.00021917,2]
[311871219,1705481441578,-500.0,0.00021917,2]
[311871221,1705481441587,-525.02707225,0.00021917,2]
[311871223,1705481441597,-500.0,0.00021917,2]
[311871225,1705481441607,-999.4,0.00021917,2]
[311871227,1705481441616,-889.56,0.00021917,2]
[311871229,1705481441629,-760.42,0.00021917,2]
[311871231,1705481441639,-500.0,0.00021917,2]
[311871233,1705481441648,-500.0,0.00021917,2]
[311871236,1705481441658,-500.0,0.00021917,2]
[311871238,1705481441667,-500.0,0.00021917,2]
[311871240,1705481441677,-500.0,0.00021917,2]
[311871242,1705481441686,-500.0,0.00021917,2]
[311871244,1705481441695,-500.0,0.00021917,2]
[311871246,1705481441704,-500.0,0.00021917,2]
[311871247,1705481441713,-500.0,0.00021917,2]
[311871250,1705481441723,-739.99,0.00021917,2]
[311871252,1705481441732,-1331.18,0.00021917,2]
[311871254,1705481441742,-820.26,0.00021917,2]
[311871256,1705481441751,-500.0,0.00021917,2]
[311871258,1705481441761,-528.07882192,0.00021917,2]
[311871260,1705481441771,-500.0,0.00021917,2]
[311871262,1705481441780,-500.0,0.00021917,2]
[311871264,1705481441790,-576.97,0.00021917,2]
[311871266,1705481441799,-1072.72,0.00021917,2]
[311871268,1705481441809,-707.88,0.00021917,2]
[311871270,1705481441818,-500.0,0.00021917,2]
[311871272,1705481441829,-500.0,0.00021917,2]
[311871274,1705481441840,-500.0,0.00021917,2]
[311871287,1705481441849,-500.0,0.00021917,2]
[311871290,1705481441967,-964.07,0.00021917,2]
[311871292,1705481441977,-848.15,0.00021917,2]
[311871293,1705481441987,-500.0,0.00021917,2]
[311871295,1705481441997,-500.0,0.00021917,2]
[311871297,1705481442006,-500.0,0.00021917,2]
[311871299,1705481442015,-500.0,0.00021917,2]
[311871300,1705481442024,-500.0,0.00021917,2]
[311871301,1705481442033,-886.27,0.00021917,2]
[311871302,1705481442042,-500.0,0.00021917,2]
[311871303,1705481442051,-743.36,0.00021917,2]
[311871304,1705481442060,-500.0,0.00021917,2]
[311871305,1705481442069,-500.0,0.00021917,2]
[311871306,1705481442078,-509.63,0.00021917,2]
[311871308,1705481442088,-676.37,0.00021917,2]
[311871310,1705481442097,-620.12,0.00021917,2]
[311871312,1705481442107,-1257.12,0.00021917,2]
[311871314,1705481442116,-932.69,0.00021917,2]
[311871316,1705481442126,-500.0,0.00021917,2]
[311871318,1705481442135,-500.0,0.00021917,2]
[311871320,1705481442144,-500.0,0.00021917,2]
[311871322,1705481442153,-500.0,0.00021917,2]
[311871324,1705481442163,-1294.42,0.00021917,2]
[311871326,1705481442172,-1005.12,0.00021917,2]
[311871328,1705481442182,-500.0,0.00021917,2]
[311871330,1705481442191,-500.0,0.00021917,2]
[311871332,1705481442200,-500.0,0.00021917,2]
[311871334,1705481442209,-500.0,0.00021917,2]
[311871336,1705481442218,-2047.65,0.00021917,2]
[311871338,1705481442227,-153.7318079,0.00021917,2]
[311871340,1705481442237,-500.0,0.00021917,2]
[311871342,1705481442246,-689.47,0.00021917,2]
[311871344,1705481442255,-500.0,0.00021917,2]
[311871346,1705481442265,-500.0,0.00021917,2]
[311871348,1705481442274,-633.67,0.00021917,2]
[311871350,1705481442286,-519.61,0.00021917,2]
[311871352,1705481442296,-500.0,0.00021917,2]
[311871354,1705481442306,-556.11748999,0.00021917,2]
[311871356,1705481442316,-960.78,0.00021917,2]
[311871358,1705481442325,-500.0,0.00021917,2]
[311871360,1705481442335,-500.0,0.00021917,2]
[311871362,1705481442344,-500.0,0.00021917,2]
[311871364,1705481442354,-1780.05,0.00021917,2]
[311871366,1705481442364,-500.0,0.00021917,2]
[311871368,1705481442373,-500.0,0.00021917,2]
[311871370,1705481442383,-500.0,0.00021917,2]
[311871372,1705481442393,-500.0,0.00021917,2]
[311871375,1705481442403,-500.0,0.00021917,2]
[311871376,1705481442412,-500.0,0.00021917,2]
[311871378,1705481442421,-1145.51,0.00021917,2]
[311871380,1705481442431,-500.0,0.00021917,2]
[311871383,1705481442440,-500.0,0.00021917,2]
[311871384,1705481442449,-500.0,0.00021917,2]
[311871387,1705481442459,-500.0,0.00021917,2]
[311871389,1705481442468,-500.0,0.00021917,2]
[311871391,1705481442477,-538.37,0.00021917,2]
[311871393,1705481442486,-667.43,0.00021917,2]
[311871394,1705481442495,-500.0,0.00021917,2]
[311871396,1705481442504,-594.57,0.00021917,2]
[311871398,1705481442514,-500.0,0.00021917,2]
[311871401,1705481442523,-500.0,0.00021917,2]
[311871403,1705481442534,-565.21,0.00021917,2]
[311871405,1705481442543,-500.0,0.00021917,2]
[311871407,1705481442552,-500.0,0.00021917,2]
[311871409,1705481442561,-500.0,0.00021917,2]
[311871411,1705481442570,-500.0,0.00021917,2]
[311871413,1705481442579,-651.15,0.00021917,2]
[311871414,1705481442588,-500.0,0.00021917,2]
[311871417,1705481442598,-578.48,0.00021917,2]
[311871419,1705481442610,-500.0,0.00021917,2]
[311871421,1705481442620,-827.03,0.00021917,2]
[311871423,1705481442628,-500.0,0.00021917,2]
[311871425,1705481442639,-1031.21,0.00021917,2]
[311871427,1705481442648,-500.0,0.00021917,2]
[311871429,1705481442657,-484.37488691,0.00021917,2]
[311871431,1705481442666,-1061.68,0.00021917,2]
[311871433,1705481442676,-500.0,0.00021917,2]
[311871435,1705481442685,-500.0,0.00021917,2]
[311871437,1705481442694,-500.0,0.00021917,2]
[311871439,1705481442703,-716.94,0.00021917,2]
[311871441,1705481442711,-814.53,0.00021917,2]
[311871443,1705481442720,-868.82,0.00021917,2]
[311871445,1705481442729,-500.0,0.00021917,2]
[311871447,1705481442739,-732.85,0.00021917,2]
[311871449,1705481442748,-500.0,0.00021917,2]
[311871451,1705481442757,-860.54,0.00021917,2]
[311871453,1705481442767,-500.0,0.00021917,2]
[311871455,1705481442776,-500.0,0.00021917,2]
[311871457,1705481442785,-936.89,0.00021917,2]
[311871459,1705481442794,-500.0,0.00021917,2]
[311871461,1705481442803,-500.0,0.00021917,2]
[311871463,1705481442813,-500.0,0.00021917,2]
[311871465,1705481442822,-623.64,0.00021917,2]
[311871467,1705481442832,-500.0,0.00021917,2]
[311871468,1705481442842,-500.0,0.00021917,2]
[311871470,1705481442852,-500.0,0.00021917,2]
[311871472,1705481442862,-500.0,0.00021917,2]
[311871475,1705481442872,-500.0,0.00021917,2]
[311871476,1705481442882,-448.99874728,0.00021917,2]
[311871478,1705481442891,-279.19689242,0.00021917,2]
[311871480,1705481442900,-1146.61,0.00021917,2]
[311871482,1705481442911,-500.0,0.00021917,2]
[311871484,1705481442921,-500.0,0.00021917,2]
[311871486,1705481442931,-500.0,0.00021917,2]
[311871488,1705481442940,-500.0,0.00021917,2]
[311871490,1705481442949,-500.0,0.00021917,2]
[311871492,1705481442958,-1045.54,0.00021917,2]
[311871494,1705481442968,-500.0,0.00021917,2]
[311871496,1705481442977,-500.0,0.00021917,2]
[311871498,1705481442986,-500.0,0.00021917,2]
[311871500,1705481442995,-507.28948114,0.00021917,2]
[311871502,1705481443005,-819.11,0.00021917,2]
[311871504,1705481443015,-500.0,0.00021917,2]
[311871506,1705481443024,-500.0,0.00021917,2]
[311871508,1705481443035,-500.0,0.00021917,2]
[311871510,1705481443044,-500.0,0.00021917,2]
[311871512,1705481443054,-970.12,0.00021917,2]
[311871514,1705481443063,-1147.96,0.00021917,2]
[311871516,1705481443072,-748.5,0.00021917,2]
[311871518,1705481443082,-500.0,0.00021917,2]
[311871520,1705481443092,-500.0,0.00021917,2]
[311871522,1705481443100,-500.0,0.00021917,2]
[311871524,1705481443110,-500.0,0.00021917,2]
[311871526,1705481443119,-500.0,0.00021917,2]
[311871528,1705481443129,-500.0,0.00021917,2]
[311871530,1705481443139,-500.0,0.00021917,2]
[311871532,1705481443149,-500.0,0.00021917,2]
[311871535,1705481443159,-500.0,0.00021917,2]
[311871537,1705481443169,-500.0,0.00021917,2]
[311871539,1705481443179,-533.99,0.00021917,2]
[311871541,1705481443188,-500.0,0.00021917,2]
[311871543,1705481443197,-1583.89,0.00021917,2]
[311871545,1705481443207,-770.2,0.00021917,2]
[311871547,1705481443216,-500.0,0.00021917,2]
[311871549,1705481443225,-2384.34,0.00021917,2]
[311871551,1705481443234,-583.79,0.00021917,2]
[311871553,1705481443243,-500.0,0.00021917,2]
[311871555,1705481443253,-500.0,0.00021917,2]
[311871557,1705481443261,-500.0,0.00021917,2]
[311871559,1705481443271,-973.37,0.00021917,2]
[311871561,1705481443281,-500.0,0.00021917,2]
[311871563,1705481443291,-261.53524751,0.00021917,2]
[311871565,1705481443300,-500.0,0.00021917,2]
[311871567,1705481443309,-500.0,0.00021917,2]
[311871569,1705481443319,-1047.17,0.00021917,2]
[311871571,1705481443328,-500.0,0.00021917,2]
[311871573,1705481443337,-500.0,0.00021917,2]
[311871575,1705481443347,-1882.6,0.00021917,2]
[311871577,1705481443356,-500.0,0.00021917,2]
[311871579,1705481443365,-903.76,0.00021917,2]
[311871581,1705481443374,-2488.96,0.00021917,2]
[311871583,1705481443383,-500.0,0.00021917,2]
[311871585,1705481443391,-500.0,0.00021917,2]
[311871587,1705481443401,-500.0,0.00021917,2]
[311871589,1705481443410,-500.0,0.00021917,2]
[311871591,1705481443419,-500.0,0.00021917,2]
[311871593,1705481443428,-529.82,0.00021917,2]
[311871595,1705481443440,-877.89,0.00021917,2]
[311871597,1705481443449,-604.35,0.00021917,2]
[311871599,1705481443458,-500.0,0.00021917,2]
[311871601,1705481443467,-500.0,0.00021917,2]
[311871602,1705481443478,-500.0,0.00021917,2]
[311871604,1705481443488,-500.0,0.00021917,2]
[311871607,1705481443498,-662.16,0.00021917,2]
[311871608,1705481443507,-1258.05,0.00021917,2]
[311871610,1705481443518,-500.0,0.00021917,2]
[311871613,1705481443530,-500.0,0.00021917,2]
[311871614,1705481443541,-909.27,0.00021917,2]
[311871616,1705481443549,-853.04,0.00021917,2]
[311871619,1705481443559,-500.0,0.00021917,2]
[311871621,1705481443570,-1037.29,0.00021917,2]
[311871623,1705481443579,-500.0,0.00021917,2]
[311871625,1705481443589,-500.0,0.00021917,2]
[311871627,1705481443601,-889.14,0.00021917,2]
[311871629,1705481443610,-1836.14,0.00021917,2]
[311871631,1705481443620,-2763.56,0.00021917,2]
[311871633,1705481443630,-500.0,0.00021917,2]
[311871634,1705481443638,-1013.91,0.00021917,2]
[311871635,1705481443648,-503.17,0.00021917,2]
[311871636,1705481443657,-500.0,0.00021917,2]
[311871637,1705481443667,-591.75,0.00021917,2]
[311871638,1705481443676,-1270.62,0.00021917,2]
[311871639,1705481443685,-500.0,0.00021917,2]
[311871640,1705481443694,-553.81,0.00021917,2]
[311871642,1705481443703,-500.0,0.00021917,2]
[311871644,1705481443712,-661.91,0.00021917,2]
[311871646,1705481443721,-500.0,0.00021917,2]
[311871648,1705481443730,-500.0,0.00021917,2]
[311871650,1705481443739,-1258.06,0.00021917,2]
[311871652,1705481443747,-2801.65,0.00021917,2]
[311871654,1705481443756,-500.0,0.00021917,2]
[311871656,1705481443765,-500.0,0.00021917,2]
[311871658,1705481443773,-500.0,0.00021917,2]
[311871660,1705481443784,-1038.12,0.00021917,2]
[311871662,1705481443792,-500.0,0.00021917,2]
[311871664,1705481443801,-1238.67,0.00021917,2]
[311871666,1705481443810,-1435.07,0.00021917,2]
[311871667,1705481443820,-500.0,0.00021917,2]
[311871669,1705481443832,-500.0,0.00021917,2]
[311871671,1705481443850,-500.0,0.00021917,2]
[311871673,1705481443860,-500.0,0.00021917,2]
[311871676,1705481443870,-500.0,0.00021917,2]
[311871678,1705481443882,-500.0,0.00021917,2]
[311871679,1705481443896,-500.0,0.00021917,2]
[311871681,1705481443906,-626.11,0.00021917,2]
[311871683,1705481443915,-1217.39,0.00021917,2]
[311871686,1705481443925,-1043.86,0.00021917,2]
[311871687,1705481443934,-623.7,0.00021917,2]
[311871689,1705481443943,-1017.19,0.00021917,2]
[311871692,1705481443953,-1536.9,0.00021917,2]
[311871694,1705481443962,-500.0,0.00021917,2]
[311871696,1705481443972,-500.0,0.00021917,2]
[311871697,1705481443982,-814.6,0.00021917,2]
[311871699,1705481443991,-737.15,0.00021917,2]
[311871702,1705481444002,-500.0,0.00021917,2]
[311871703,1705481444013,-500.0,0.00021917,2]
[311871706,1705481444023,-1229.15,0.00021917,2]
[311871707,1705481444035,-600.61,0.00021917,2]
[311871709,1705481444045,-500.0,0.00021917,2]
[311871711,1705481444055,-500.0,0.00021917,2]
[311871713,1705481444064,-500.0,0.00021917,2]
[311871715,1705481444074,-500.0,0.00021917,2]
[311871717,1705481444084,-1084.02,0.00021917,2]
[311871719,1705481444095,-500.0,0.00021917,2]
[311871722,1705481444108,-500.0,0.00021917,2]
[311871724,1705481444118,-732.22,0.00021917,2]
[311871726,1705481444129,-1166.49,0.00021917,2]
[311871727,1705481444139,-567.6,0.00021917,2]
[311871729,1705481444149,-500.0,0.00021917,2]
[311871731,1705481444159,-500.0,0.00021917,2]
[311871733,1705481444169,-500.0,0.00021917,2]
[311871736,1705481444180,-552.3,0.00021917,2]
[311871738,1705481444190,-500.0,0.00021917,2]
[311871740,1705481444200,-188.34133813,0.00021917,2]
[311871741,1705481444213,-544.99,0.00021917,2]
[311871743,1705481444224,-769.85,0.00021917,2]
[311871745,1705481444234,-500.0,0.00021917,2]
[311871747,1705481444244,-977.64,0.00021917,2]
[311871749,1705481444254,-1156.36,0.00021917,2]
[311871751,1705481444264,-686.4,0.00021917,2]
[311871753,1705481444275,-500.0,0.00021917,2]
[311871755,1705481444288,-500.0,0.00021917,2]
[311871757,1705481444299,-500.0,0.00021917,2]
[311871760,1705481444313,-573.74,0.00021917,2]
[311871762,1705481444325,-500.0,0.00021917,2]
[311871764,1705481444337,-1030.28,0.00021917,2]
[311871766,1705481444348,-500.0,0.00021917,2]
[311871767,1705481444359,-500.0,0.00021917,2]
[311871769,1705481444369,-521.39,0.00021917,2]
[311871772,1705481444381,-500.0,0.00021917,2]
[311871773,1705481444392,-1131.9,0.00021917,2]
[311871775,1705481444402,-500.0,0.00021917,2]
[311871778,1705481444419,-2599.51,0.00021917,2]
[311871780,1705481444432,-500.0,0.00021917,2]
[311871782,1705481444443,-500.0,0.00021917,2]
[311871783,1705481444454,-963.01,0.00021917,2]
[311871786,1705481444465,-901.15,0.00021917,2]
[311871787,1705481444476,-1233.01,0.00021917,2]
[311871789,1705481444487,-500.0,0.00021917,2]
[311871791,1705481444498,-317.61,0.00021917,2]
[311871793,1705481444508,-500.0,0.00021917,2]
[311871795,1705481444524,-510.12,0.00021917,2]
[311871798,1705481444539,-1298.04,0.00021917,2]
[311871799,1705481444550,-500.0,0.00021917,2]